[Event "Masters Tournament (MTO)"]
[Site "Biel, Switzerland"]
[Date "2026.07.16"]
[Round "4.30"]
[White "Oestmann, Lukas"]
[Black "Erne, Raphael"]
[Result "1/2-1/2"]
[TimeControl "100+30+30sec/move"]
[WhiteTitle "-"]
[BlackTitle "-"]
[WhiteFideId "1326457"]
[BlackFideId "1341928"]
[WhiteElo "1998"]
[BlackElo "2166"]

1. e4 {[%clk 01:40:58]} c6 {[%clk 01:40:50]} {[%emt 00:00:10]} 2. d4 {[%clk
01:41:05]} {[%emt 00:00:26]} d5 {[%clk 01:41:07]} {[%emt 00:00:10]} 3. e5
{[%clk 01:41:32]} {[%emt 00:00:04]} c5 {[%clk 01:41:25]} {[%emt 00:00:12]} 4.
dxc5 {[%clk 01:41:59]} {[%emt 00:00:02]} e6 {[%clk 01:41:26]} {[%emt 00:00:29]}
5. Be3 {[%clk 01:42:25]} {[%emt 00:00:04]} Nd7 {[%clk 01:41:18]} {[%emt
00:00:38]} 6. Bb5 {[%clk 01:42:50]} {[%emt 00:00:05]} Ne7 {[%clk 01:41:25]}
{[%emt 00:00:23]} 7. Bd4 {[%clk 01:40:54]} {[%emt 00:02:27]} Nc6 {[%clk
01:40:20]} {[%emt 00:01:35]} 8. Bxc6 {[%clk 01:41:18]} {[%emt 00:00:06]} bxc6
{[%clk 01:40:46]} {[%emt 00:00:04]} 9. b4 {[%clk 01:40:43]} {[%emt 00:01:05]}
a5 {[%clk 01:38:35]} {[%emt 00:02:41]} 10. a3 {[%clk 01:40:56]} {[%emt
00:00:17]} Ba6 {[%clk 01:34:21]} {[%emt 00:04:43]} 11. Nd2 {[%clk 01:40:17]}
{[%emt 00:01:09]} Be7 {[%clk 01:32:47]} {[%emt 00:02:04]} 12. Qg4 {[%clk
01:29:04]} {[%emt 00:11:43]} O-O {[%clk 01:32:18]} {[%emt 00:00:59]} 13. f4
{[%clk 01:23:48]} {[%emt 00:05:45]} Kh8 {[%clk 01:29:14]} {[%emt 00:03:35]} 14.
Ngf3 {[%clk 01:08:39]} {[%emt 00:15:40]} Qc7 {[%clk 01:18:05]} {[%emt
00:11:38]} 15. Kf2 {[%clk 01:07:49]} {[%emt 00:01:20]} f6 {[%clk 00:48:02]}
{[%emt 00:30:34]} 16. Rhe1 {[%clk 01:00:30]} {[%emt 00:07:48]} f5 {[%clk
00:46:18]} {[%emt 00:02:14]} 17. Qh5 {[%clk 00:58:54]} {[%emt 00:02:06]} g6
{[%clk 00:43:42]} {[%emt 00:03:06]} 18. Qh6 {[%clk 00:57:47]} {[%emt 00:01:36]}
Rfe8 {[%clk 00:39:51]} {[%emt 00:04:22]} 19. h4 {[%clk 00:53:16]} {[%emt
00:05:01]} Qd8 {[%clk 00:30:52]} {[%emt 00:09:29]} 20. Ng5 {[%clk 00:52:41]}
{[%emt 00:01:04]} Bxg5 {[%clk 00:31:05]} {[%emt 00:00:17]} 21. hxg5 {[%clk
00:52:53]} {[%emt 00:00:18]} Qe7 {[%clk 00:28:08]} {[%emt 00:03:28]} 22. Nb3
{[%clk 00:50:04]} {[%emt 00:03:19]} axb4 {[%clk 00:26:14]} {[%emt 00:02:25]} 23.
axb4 {[%clk 00:50:25]} {[%emt 00:00:09]} Bb5 {[%clk 00:25:10]} {[%emt
00:01:34]} 24. Rh1 {[%clk 00:46:24]} {[%emt 00:04:30]} Nf8 {[%clk 00:23:59]}
{[%emt 00:01:41]} 25. Bc3 {[%clk 00:44:08]} {[%emt 00:02:46]} Qb7 {[%clk
00:13:09]} {[%emt 00:11:20]} 26. Rxa8 {[%clk 00:40:55]} {[%emt 00:03:44]} Rxa8
{[%clk 00:12:50]} {[%emt 00:00:48]} 27. Ra1 {[%clk 00:41:20]} {[%emt 00:00:04]}
Kg8 {[%clk 00:12:25]} {[%emt 00:00:56]} 28. Qh1 {[%clk 00:40:27]} {[%emt
00:01:23]} Kf7 {[%clk 00:07:39]} {[%emt 00:05:17]} 29. Nd4 {[%clk 00:39:58]}
{[%emt 00:00:58]} Rxa1 {[%clk 00:04:04]} {[%emt 00:04:05]} 30. Qxa1 {[%clk
00:40:17]} {[%emt 00:00:11]} Ke7 {[%clk 00:04:15]} {[%emt 00:00:19]} 31. Ke3
{[%clk 00:30:42]} {[%emt 00:10:05]} Ke8 {[%clk 00:03:45]} {[%emt 00:01:00]} 32.
Qa5 {[%clk 00:29:43]} {[%emt 00:01:28]} Kd7 {[%clk 00:03:15]} {[%emt 00:01:01]}
33. Qb6 {[%clk 00:26:28]} {[%emt 00:03:45]} Qc7 {[%clk 00:01:14]} {[%emt
00:02:31]} 34. g3 {[%clk 00:24:04]} {[%emt 00:02:55]} Kd8 {[%clk 00:00:38]}
{[%emt 00:01:07]} 35. Nb3 {[%clk 00:20:24]} {[%emt 00:04:09]} Nd7 {[%clk
00:00:37]} {[%emt 00:00:32]} 36. Qxc7+ {[%clk 00:13:47]} {[%emt 00:07:07]} Kxc7
{[%clk 00:01:03]} {[%emt 00:00:03]} 37. Nd4 {[%clk 00:14:08]} {[%emt 00:00:09]}
Nf8 {[%clk 00:01:19]} {[%emt 00:00:14]} 38. Kf3 {[%clk 00:13:00]} {[%emt
00:01:36]} Kd7 {[%clk 00:00:57]} {[%emt 00:00:54]} 39. g4 {[%clk 00:11:19]}
{[%emt 00:02:10]} fxg4+ {[%clk 00:00:59]} {[%emt 00:00:29]} 40. Kxg4 {[%clk
00:11:44]} {[%emt 00:00:05]} Ba4 {[%clk 00:00:37]} {[%emt 00:00:52]} 41. Kf3
{[%clk 00:08:13]} {[%emt 00:04:00]} 1/2-1/2

[Event "Masters Tournament (MTO)"]
[Site "Biel, Switzerland"]
[Date "2026.07.16"]
[Round "4.31"]
[White "Von Burg, Carl Alexander"]
[Black "Vihaan, Dumir"]
[Result "0-1"]
[TimeControl "100+30+30sec/move"]
[WhiteTitle "-"]
[BlackTitle "-"]
[WhiteFideId "1352458"]
[BlackFideId "25901010"]
[WhiteElo "1947"]
[BlackElo "2132"]

1. d4 {[%clk 01:40:55]} {[%emt 00:00:04]} e6 {[%clk 01:40:52]} {[%emt
00:00:08]} 2. c4 {[%clk 01:41:20]} {[%emt 00:00:06]} f5 {[%clk 01:41:15]}
{[%emt 00:00:07]} 3. Nf3 {[%clk 01:41:26]} {[%emt 00:00:23]} Nf6 {[%clk
01:41:40]} {[%emt 00:00:05]} 4. g3 {[%clk 01:41:44]} {[%emt 00:00:13]} d5
{[%clk 01:42:03]} {[%emt 00:00:07]} 5. Bg2 {[%clk 01:41:29]} {[%emt 00:00:44]}
Bd6 {[%clk 01:42:26]} {[%emt 00:00:08]} 6. O-O {[%clk 01:38:40]} {[%emt
00:03:19]} O-O {[%clk 01:42:42]} {[%emt 00:00:14]} 7. c5 {[%clk 01:36:06]}
{[%emt 00:03:02]} Be7 {[%clk 01:43:09]} {[%emt 00:00:04]} 8. Bf4 {[%clk
01:36:12]} {[%emt 00:00:23]} Ne4 {[%clk 01:37:18]} {[%emt 00:06:22]} 9. Nbd2
{[%clk 01:35:20]} {[%emt 00:01:22]} b6 {[%clk 01:31:41]} {[%emt 00:06:07]} 10.
Nxe4 {[%clk 01:27:33]} {[%emt 00:08:17]} fxe4 {[%clk 01:31:50]} {[%emt
00:00:22]} 11. Ne5 {[%clk 01:27:39]} {[%emt 00:00:23]} bxc5 {[%clk 01:31:33]}
{[%emt 00:00:47]} 12. dxc5 {[%clk 01:25:02]} {[%emt 00:03:07]} Bxc5 {[%clk
01:30:56]} {[%emt 00:01:08]} 13. Rc1 {[%clk 01:24:20]} {[%emt 00:01:11]} Bd6
{[%clk 01:28:33]} {[%emt 00:02:50]} 14. f3 {[%clk 01:18:05]} {[%emt 00:06:49]}
g5 {[%clk 01:12:09]} {[%emt 00:16:54]} 15. fxe4 {[%clk 01:16:17]} {[%emt
00:02:17]} gxf4 {[%clk 01:09:56]} {[%emt 00:02:44]} 16. gxf4 {[%clk 01:16:30]}
{[%emt 00:00:17]} Bxe5 {[%clk 00:47:13]} {[%emt 00:23:12]} 17. fxe5 {[%clk
01:16:43]} {[%emt 00:00:16]} Rxf1+ {[%clk 00:41:23]} {[%emt 00:06:22]} 18. Qxf1
{[%clk 01:17:00]} {[%emt 00:00:12]} d4 {[%clk 00:37:57]} {[%emt 00:03:56]} 19.
Qf6 {[%clk 01:11:50]} {[%emt 00:05:40]} Qxf6 {[%clk 00:37:13]} {[%emt
00:01:15]} 20. exf6 {[%clk 01:12:18]} {[%emt 00:00:02]} Na6 {[%clk 00:35:17]}
{[%emt 00:02:26]} 21. e5 {[%clk 01:03:50]} {[%emt 00:08:58]} Rb8 {[%clk
00:35:37]} {[%emt 00:00:10]} 22. Rc4 {[%clk 01:02:27]} {[%emt 00:01:51]} Rb4
{[%clk 00:35:22]} {[%emt 00:00:45]} 23. Rc2 {[%clk 01:00:45]} {[%emt 00:02:12]}
c5 {[%clk 00:24:31]} {[%emt 00:11:23]} 24. Be4 {[%clk 00:56:15]} {[%emt
00:04:55]} Bd7 {[%clk 00:21:44]} {[%emt 00:03:22]} 25. e3 {[%clk 00:41:42]}
{[%emt 00:15:02]} Be8 {[%clk 00:11:58]} {[%emt 00:10:16]} 26. Rg2+ {[%clk
00:32:35]} {[%emt 00:09:37]} Kf8 {[%clk 00:12:24]} {[%emt 00:00:04]} 27. Bxh7
{[%clk 00:27:32]} {[%emt 00:05:33]} Bf7 {[%clk 00:12:52]} {[%emt 00:00:02]} 28.
a3 {[%clk 00:24:26]} {[%emt 00:03:36]} Rc4 {[%clk 00:11:30]} {[%emt 00:01:52]}
29. Rd2 {[%clk 00:19:16]} {[%emt 00:05:37]} Nb8 {[%clk 00:06:47]} {[%emt
00:05:13]} 30. exd4 {[%clk 00:18:30]} {[%emt 00:01:19]} Rxd4 {[%clk 00:06:02]}
{[%emt 00:01:15]} 31. Rc2 {[%clk 00:18:42]} {[%emt 00:00:16]} Nd7 {[%clk
00:05:44]} {[%emt 00:00:48]} 32. b4 {[%clk 00:18:32]} {[%emt 00:00:42]} c4
{[%clk 00:05:38]} {[%emt 00:00:35]} 33. Re2 {[%clk 00:18:16]} {[%emt 00:00:46]}
Rd5 {[%clk 00:04:39]} {[%emt 00:01:29]} 34. a4 {[%clk 00:16:49]} {[%emt
00:01:58]} Nxe5 {[%clk 00:04:15]} {[%emt 00:00:54]} 35. b5 {[%clk 00:16:22]}
{[%emt 00:00:58]} Nd7 {[%clk 00:03:42]} {[%emt 00:01:01]} 36. Rf2 {[%clk
00:13:33]} {[%emt 00:03:20]} c3 {[%clk 00:03:06]} {[%emt 00:01:06]} 37. Be4
{[%clk 00:12:50]} {[%emt 00:01:12]} Rc5 {[%clk 00:02:19]} {[%emt 00:01:16]} 38.
Bc2 {[%clk 00:12:32]} {[%emt 00:00:50]} Bh5 {[%clk 00:02:14]} {[%emt 00:00:33]}
39. Rf4 {[%clk 00:11:52]} {[%emt 00:01:11]} Kf7 {[%clk 00:01:55]} {[%emt
00:00:49]} 40. Rd4 {[%clk 00:09:59]} {[%emt 00:02:22]} Nxf6 {[%clk 00:02:12]}
{[%emt 00:00:15]} 41. Rd8 {[%clk 00:08:15]} {[%emt 00:02:13]} Bg6 {[%clk
00:02:17]} {[%emt 00:00:25]} 0-1

[Event "Masters Tournament (MTO)"]
[Site "Biel, Switzerland"]
[Date "2026.07.16"]
[Round "4.32"]
[White "Malli, Suvirr"]
[Black "Damen, Josephine"]
[Result "1-0"]
[TimeControl "100+30+30sec/move"]
[WhiteTitle "-"]
[BlackTitle "-"]
[WhiteFideId "1341855"]
[BlackFideId "1074369"]
[WhiteElo "2120"]
[BlackElo "1971"]

1. e4 {[%clk 01:40:57]} {[%emt 00:00:01]} e5 {[%clk 01:40:54]} {[%emt
00:00:07]} 2. Nf3 {[%clk 01:40:57]} {[%emt 00:00:29]} Nc6 {[%clk 01:41:21]}
{[%emt 00:00:05]} 3. Bc4 {[%clk 01:41:19]} {[%emt 00:00:08]} Nf6 {[%clk
01:41:42]} {[%emt 00:00:08]} 4. d3 {[%clk 01:41:45]} {[%emt 00:00:05]} Bc5
{[%clk 01:42:06]} {[%emt 00:00:06]} 5. Nc3 {[%clk 01:42:10]} {[%emt 00:00:05]}
d6 {[%clk 01:42:23]} {[%emt 00:00:13]} 6. Na4 {[%clk 01:42:29]} {[%emt
00:00:11]} Bb6 {[%clk 01:42:45]} {[%emt 00:00:08]} 7. a3 {[%clk 01:42:43]}
{[%emt 00:00:16]} O-O {[%clk 01:42:36]} {[%emt 00:00:39]} 8. h3 {[%clk
01:42:42]} {[%emt 00:00:31]} Ne7 {[%clk 01:37:43]} {[%emt 00:05:23]} 9. Nxb6
{[%clk 01:38:56]} {[%emt 00:04:17]} axb6 {[%clk 01:38:07]} {[%emt 00:00:05]} 10.
O-O {[%clk 01:39:10]} {[%emt 00:00:16]} Ng6 {[%clk 01:38:17]} {[%emt 00:00:20]}
11. Re1 {[%clk 01:31:59]} {[%emt 00:07:41]} Re8 {[%clk 01:25:22]} {[%emt
00:13:25]} 12. Bd2 {[%clk 01:13:44]} {[%emt 00:18:45]} c6 {[%clk 01:21:45]}
{[%emt 00:04:07]} 13. Bb3 {[%clk 01:09:45]} {[%emt 00:04:30]} d5 {[%clk
01:21:08]} {[%emt 00:01:07]} 14. exd5 {[%clk 01:09:47]} {[%emt 00:00:28]} Nxd5
{[%clk 01:21:22]} {[%emt 00:00:15]} 15. d4 {[%clk 00:55:18]} {[%emt 00:15:00]}
e4 {[%clk 01:00:01]} {[%emt 00:21:50]} 16. Ng5 {[%clk 00:32:16]} {[%emt
00:23:32]} e3 {[%clk 00:37:20]} {[%emt 00:23:12]} 17. Bxe3 {[%clk 00:29:43]}
{[%emt 00:03:03]} Rxe3 {[%clk 00:34:23]} {[%emt 00:03:27]} 18. Rxe3 {[%clk
00:26:53]} {[%emt 00:03:20]} Qxg5 {[%clk 00:28:14]} {[%emt 00:06:38]} 19. Bxd5
{[%clk 00:24:10]} {[%emt 00:03:13]} Qxd5 {[%clk 00:15:28]} {[%emt 00:13:17]} 20.
Re8+ {[%clk 00:24:09]} {[%emt 00:00:30]} Nf8 {[%clk 00:15:53]} {[%emt
00:00:05]} 21. Qe2 {[%clk 00:19:49]} {[%emt 00:04:50]} Bxh3 {[%clk 00:06:20]}
{[%emt 00:10:03]} 22. gxh3 {[%clk 00:18:55]} {[%emt 00:01:24]} Qg5+ {[%clk
00:06:43]} {[%emt 00:00:08]} 23. Kh1 {[%clk 00:17:42]} {[%emt 00:01:42]} Qd5+
{[%clk 00:04:37]} {[%emt 00:02:36]} 24. Kh2 {[%clk 00:17:47]} {[%emt 00:00:24]}
Rxe8 {[%clk 00:04:46]} {[%emt 00:00:23]} 25. Qxe8 {[%clk 00:18:09]} {[%emt
00:00:07]} Qxd4 {[%clk 00:04:56]} {[%emt 00:00:20]} 26. Qe3 {[%clk 00:17:27]}
{[%emt 00:01:10]} Qxb2 {[%clk 00:05:13]} {[%emt 00:00:15]} 27. Rd1 {[%clk
00:12:36]} {[%emt 00:05:19]} g6 {[%clk 00:04:04]} {[%emt 00:01:41]} 28. Rd8
{[%clk 00:08:07]} {[%emt 00:04:59]} Kg7 {[%clk 00:03:41]} {[%emt 00:00:53]} 29.
Qe8 {[%clk 00:05:44]} {[%emt 00:02:53]} Qxa3 {[%clk 00:04:04]} {[%emt
00:00:08]} 30. Qe5+ {[%clk 00:05:32]} {[%emt 00:00:41]} Kh6 {[%clk 00:03:49]}
{[%emt 00:00:46]} 31. Rd4 {[%clk 00:05:23]} {[%emt 00:00:38]} f5 {[%clk
00:01:24]} {[%emt 00:02:56]} 32. Rh4+ {[%clk 00:04:46]} {[%emt 00:01:07]} Kg5
{[%clk 00:01:45]} {[%emt 00:00:09]} 33. f4+ {[%clk 00:05:02]} {[%emt 00:00:13]}
Kxh4 {[%clk 00:01:40]} {[%emt 00:00:36]} 34. Qf6+ {[%clk 00:05:26]} {[%emt
00:00:06]} 1-0

[Event "Masters Tournament (MTO)"]
[Site "Biel, Switzerland"]
[Date "2026.07.16"]
[Round "4.33"]
[White "Wenger, Arejou"]
[Black "Kunz, Andre"]
[Result "0-1"]
[TimeControl "100+30+30sec/move"]
[WhiteTitle "-"]
[BlackTitle "-"]
[WhiteFideId "1336584"]
[BlackFideId "24623652"]
[WhiteElo "1873"]
[BlackElo "2116"]

1. e4 {[%clk 01:40:58]} c6 {[%clk 01:40:58]} {[%emt 00:00:02]} 2. Nc3 {[%clk
01:41:23]} {[%emt 00:00:05]} d5 {[%clk 01:41:19]} {[%emt 00:00:09]} 3. Nf3
{[%clk 01:41:49]} {[%emt 00:00:06]} Bg4 {[%clk 01:41:23]} {[%emt 00:00:24]} 4.
h3 {[%clk 01:42:03]} {[%emt 00:00:16]} Bxf3 {[%clk 01:41:47]} {[%emt 00:00:05]}
5. Qxf3 {[%clk 01:42:29]} {[%emt 00:00:05]} e6 {[%clk 01:42:02]} {[%emt
00:00:15]} 6. d3 {[%clk 01:42:51]} {[%emt 00:00:09]} Nd7 {[%clk 01:41:57]}
{[%emt 00:00:34]} 7. g4 {[%clk 01:42:04]} {[%emt 00:01:17]} Bd6 {[%clk
01:35:30]} {[%emt 00:06:58]} 8. Bd2 {[%clk 01:36:33]} {[%emt 00:06:01]} Qb6
{[%clk 01:34:48]} {[%emt 00:01:11]} 9. O-O-O {[%clk 01:26:24]} {[%emt
00:10:39]} d4 {[%clk 01:34:38]} {[%emt 00:00:40]} 10. Ne2 {[%clk 01:25:15]}
{[%emt 00:01:39]} a5 {[%clk 01:34:25]} {[%emt 00:00:44]} 11. Qg2 {[%clk
01:13:34]} {[%emt 00:12:10]} Ne7 {[%clk 01:29:46]} {[%emt 00:05:09]} 12. f4
{[%clk 01:13:14]} {[%emt 00:00:50]} Bb4 {[%clk 01:26:30]} {[%emt 00:03:46]} 13.
Ng3 {[%clk 01:08:19]} {[%emt 00:05:24]} Nc5 {[%clk 01:16:52]} {[%emt 00:10:09]}
14. Nh5 {[%clk 00:51:29]} {[%emt 00:17:19]} Na4 {[%clk 01:10:14]} {[%emt
00:07:09]} 15. Nxg7+ {[%clk 00:41:15]} {[%emt 00:10:43]} Kf8 {[%clk 01:06:46]}
{[%emt 00:03:59]} 16. Nh5 {[%clk 00:41:07]} {[%emt 00:00:38]} Ba3 {[%clk
00:58:04]} {[%emt 00:09:12]} 17. Be1 {[%clk 00:38:04]} {[%emt 00:03:33]} Qxb2+
{[%clk 00:55:43]} {[%emt 00:02:51]} 18. Kd2 {[%clk 00:38:26]} {[%emt 00:00:08]}
Bb4+ {[%clk 00:54:40]} {[%emt 00:01:33]} 19. Ke2 {[%clk 00:38:43]} {[%emt
00:00:13]} Qxc2+ {[%clk 00:54:37]} {[%emt 00:00:33]} 20. Rd2 {[%clk 00:37:42]}
{[%emt 00:01:30]} Bxd2 {[%clk 00:54:07]} {[%emt 00:01:00]} 21. Bxd2 {[%clk
00:37:59]} {[%emt 00:00:13]} Nc3+ {[%clk 00:53:47]} {[%emt 00:00:51]} 22. Kf3
{[%clk 00:38:04]} {[%emt 00:00:25]} Qd1+ {[%clk 00:35:26]} {[%emt 00:18:51]} 23.
Kg3 {[%clk 00:37:48]} {[%emt 00:00:45]} Nb1 {[%clk 00:31:46]} {[%emt 00:04:11]}
24. Be2 {[%clk 00:30:30]} {[%emt 00:07:49]} Qxd2 {[%clk 00:32:14]} {[%emt
00:00:02]} 25. Rxb1 {[%clk 00:30:46]} {[%emt 00:00:13]} b5 {[%clk 00:32:31]}
{[%emt 00:00:13]} 26. Kh2 {[%clk 00:28:13]} {[%emt 00:03:02]} Ke8 {[%clk
00:20:23]} {[%emt 00:12:39]} 27. Nf6+ {[%clk 00:26:35]} {[%emt 00:02:07]} Kd8
{[%clk 00:20:33]} {[%emt 00:00:21]} 28. f5 {[%clk 00:20:40]} {[%emt 00:06:25]}
e5 {[%clk 00:18:33]} {[%emt 00:02:30]} 29. g5 {[%clk 00:19:20]} {[%emt
00:01:49]} h6 {[%clk 00:17:13]} {[%emt 00:01:50]} 30. g6 {[%clk 00:19:17]}
{[%emt 00:00:33]} fxg6 {[%clk 00:16:49]} {[%emt 00:00:55]} 31. fxg6 {[%clk
00:19:28]} {[%emt 00:00:19]} Qf4+ {[%clk 00:16:59]} {[%emt 00:00:20]} 32. Kh1
{[%clk 00:16:51]} {[%emt 00:03:06]} Qxf6 {[%clk 00:17:14]} {[%emt 00:00:15]} 33.
g7 {[%clk 00:16:33]} {[%emt 00:00:48]} Rg8 {[%clk 00:17:06]} {[%emt 00:00:39]}
34. Rf1 {[%clk 00:16:52]} {[%emt 00:00:10]} Qxg7 {[%clk 00:17:06]} {[%emt
00:00:31]} 35. Qxg7 {[%clk 00:17:05]} {[%emt 00:00:17]} Rxg7 {[%clk 00:17:03]}
{[%emt 00:00:34]} 36. Rf8+ {[%clk 00:17:28]} {[%emt 00:00:06]} Kc7 {[%clk
00:15:16]} {[%emt 00:02:17]} 37. Rxa8 {[%clk 00:17:47]} {[%emt 00:00:10]} Kb6
{[%clk 00:14:14]} {[%emt 00:01:32]} 38. Re8 {[%clk 00:15:41]} {[%emt 00:02:37]}
Kc5 {[%clk 00:09:25]} {[%emt 00:05:18]} 39. Bg4 {[%clk 00:14:23]} {[%emt
00:01:46]} Kb4 {[%clk 00:09:41]} {[%emt 00:00:16]} 40. Rh8 {[%clk 00:11:19]}
{[%emt 00:03:34]} Kc3 {[%clk 00:05:45]} {[%emt 00:04:27]} 41. Rxh6 {[%clk
00:07:47]} {[%emt 00:04:02]} Kxd3 {[%clk 00:04:53]} {[%emt 00:01:22]} 42. Bf5
{[%clk 00:05:38]} {[%emt 00:02:38]} c5 {[%clk 00:03:48]} {[%emt 00:01:34]} 43.
Re6 {[%clk 00:04:55]} {[%emt 00:01:13]} Nxf5 {[%clk 00:01:25]} {[%emt
00:02:55]} 44. exf5 {[%clk 00:04:20]} {[%emt 00:01:04]} e4 {[%clk 00:01:30]}
{[%emt 00:00:26]} 45. f6 {[%clk 00:04:39]} {[%emt 00:00:10]} Rf7 {[%clk
00:01:52]} {[%emt 00:00:08]} 46. Kg2 {[%clk 00:03:49]} {[%emt 00:01:20]} e3
{[%clk 00:02:01]} {[%emt 00:00:21]} 47. h4 {[%clk 00:04:16]} {[%emt 00:00:04]}
Kd2 {[%clk 00:01:24]} {[%emt 00:01:06]} 48. h5 {[%clk 00:02:53]} {[%emt
00:01:53]} e2 {[%clk 00:01:30]} {[%emt 00:00:24]} 0-1

[Event "Masters Tournament (MTO)"]
[Site "Biel, Switzerland"]
[Date "2026.07.16"]
[Round "4.34"]
[White "Papaux, Jeremie"]
[Black "Rosen, Noah"]
[Result "1-0"]
[TimeControl "100+30+30sec/move"]
[WhiteTitle "-"]
[BlackTitle "-"]
[WhiteFideId "1340867"]
[BlackFideId "1356267"]
[WhiteElo "2102"]
[BlackElo "1921"]

1. d4 {[%clk 01:40:44]} {[%emt 00:00:15]} Nf6 {[%clk 01:40:50]} {[%emt
00:00:09]} 2. c4 {[%clk 01:41:04]} {[%emt 00:00:12]} g6 {[%clk 01:41:13]}
{[%emt 00:00:05]} 3. Nc3 {[%clk 01:41:25]} {[%emt 00:00:09]} Bg7 {[%clk
01:41:36]} {[%emt 00:00:06]} 4. e4 {[%clk 01:41:51]} {[%emt 00:00:05]} d6
{[%clk 01:42:00]} {[%emt 00:00:06]} 5. Be2 {[%clk 01:42:17]} {[%emt 00:00:04]}
O-O {[%clk 01:41:32]} {[%emt 00:00:58]} 6. Be3 {[%clk 01:41:10]} {[%emt
00:01:37]} e5 {[%clk 01:36:22]} {[%emt 00:05:40]} 7. d5 {[%clk 01:41:35]}
{[%emt 00:00:05]} a5 {[%clk 01:31:59]} {[%emt 00:04:53]} 8. g4 {[%clk
01:39:59]} {[%emt 00:02:06]} Na6 {[%clk 01:27:58]} {[%emt 00:04:31]} 9. g5
{[%clk 01:40:20]} {[%emt 00:00:10]} Nd7 {[%clk 01:28:21]} {[%emt 00:00:06]} 10.
h4 {[%clk 01:39:01]} {[%emt 00:01:48]} f5 {[%clk 01:22:26]} {[%emt 00:06:26]}
11. gxf6 {[%clk 01:39:25]} {[%emt 00:00:07]} Qxf6 {[%clk 01:22:04]} {[%emt
00:00:52]} 12. Qd2 {[%clk 01:35:49]} {[%emt 00:04:05]} h5 {[%clk 01:06:21]}
{[%emt 00:16:13]} 13. O-O-O {[%clk 01:32:28]} {[%emt 00:03:51]} Ndc5 {[%clk
01:04:16]} {[%emt 00:02:35]} 14. Nh3 {[%clk 01:27:42]} {[%emt 00:05:15]} Nb4
{[%clk 00:51:03]} {[%emt 00:13:43]} 15. Kb1 {[%clk 01:25:07]} {[%emt 00:03:05]}
Bd7 {[%clk 00:44:51]} {[%emt 00:06:43]} 16. Rdg1 {[%clk 01:23:42]} {[%emt
00:01:53]} Kh8 {[%clk 00:30:55]} {[%emt 00:14:28]} 17. Bh6 {[%clk 01:10:49]}
{[%emt 00:13:22]} Rg8 {[%clk 00:17:52]} {[%emt 00:13:34]} 18. Bxg7+ {[%clk
01:09:13]} {[%emt 00:02:06]} Rxg7 {[%clk 00:18:17]} {[%emt 00:00:06]} 19. a3
{[%clk 01:07:00]} {[%emt 00:02:42]} Nba6 {[%clk 00:18:14]} {[%emt 00:00:33]} 20.
Qh6+ {[%clk 01:06:50]} {[%emt 00:00:40]} Rh7 {[%clk 00:16:46]} {[%emt
00:01:59]} 21. Qxg6 {[%clk 01:06:46]} {[%emt 00:00:32]} Qxg6 {[%clk 00:17:12]}
{[%emt 00:00:05]} 22. Rxg6 {[%clk 01:07:09]} {[%emt 00:00:07]} Rg8 {[%clk
00:17:20]} {[%emt 00:00:22]} 23. Rxg8+ {[%clk 01:06:26]} {[%emt 00:01:13]} Kxg8
{[%clk 00:17:46]} {[%emt 00:00:04]} 24. Kc2 {[%clk 01:04:25]} {[%emt 00:02:32]}
Kf8 {[%clk 00:10:52]} {[%emt 00:07:23]} 25. Ng5 {[%clk 01:04:09]} {[%emt
00:00:45]} Rh6 {[%clk 00:11:14]} {[%emt 00:00:09]} 26. Rf1 {[%clk 00:59:59]}
{[%emt 00:04:40]} Bg4 {[%clk 00:09:42]} {[%emt 00:02:02]} 27. f3 {[%clk
00:59:49]} {[%emt 00:00:39]} Bd7 {[%clk 00:10:08]} {[%emt 00:00:05]} 28. f4
{[%clk 00:55:21]} {[%emt 00:04:58]} exf4 {[%clk 00:10:30]} {[%emt 00:00:08]} 29.
Rxf4+ {[%clk 00:55:44]} {[%emt 00:00:06]} Ke8 {[%clk 00:10:50]} {[%emt
00:00:10]} 30. Kd2 {[%clk 00:55:00]} {[%emt 00:01:14]} Nb3+ {[%clk 00:10:59]}
{[%emt 00:00:22]} 31. Ke3 {[%clk 00:54:30]} {[%emt 00:00:58]} Nac5 {[%clk
00:11:06]} {[%emt 00:00:24]} 32. Bd1 {[%clk 00:54:02]} {[%emt 00:00:58]} Ke7
{[%clk 00:09:10]} {[%emt 00:02:27]} 33. Rf7+ {[%clk 00:53:59]} {[%emt
00:00:33]} Ke8 {[%clk 00:09:36]} {[%emt 00:00:04]} 34. Rh7 {[%clk 00:53:05]}
{[%emt 00:01:23]} Rxh7 {[%clk 00:08:05]} {[%emt 00:02:02]} 35. Nxh7 {[%clk
00:53:29]} {[%emt 00:00:05]} Bg4 {[%clk 00:07:22]} {[%emt 00:01:14]} 36. Bxb3
{[%clk 00:51:05]} {[%emt 00:02:55]} Nxb3 {[%clk 00:07:39]} {[%emt 00:00:12]} 37.
Nf6+ {[%clk 00:51:31]} {[%emt 00:00:03]} Kf7 {[%clk 00:07:56]} {[%emt
00:00:13]} 38. Nxg4 {[%clk 00:51:53]} {[%emt 00:00:09]} hxg4 {[%clk 00:08:21]}
{[%emt 00:00:05]} 39. Nb5 {[%clk 00:50:21]} {[%emt 00:02:02]} g3 {[%clk
00:04:44]} {[%emt 00:04:07]} 40. Kf3 {[%clk 00:45:44]} {[%emt 00:05:08]} Nd2+
{[%clk 00:05:03]} {[%emt 00:00:10]} 41. Kxg3 {[%clk 00:45:48]} {[%emt
00:00:26]} Nxe4+ {[%clk 00:05:25]} {[%emt 00:00:08]} 42. Kf4 {[%clk 00:46:00]}
{[%emt 00:00:18]} Nd2 {[%clk 00:05:32]} {[%emt 00:00:23]} 43. Nxc7 {[%clk
00:45:17]} {[%emt 00:01:13]} Nxc4 {[%clk 00:03:49]} {[%emt 00:02:13]} 44. Nb5
{[%clk 00:45:42]} {[%emt 00:00:05]} Nxb2 {[%clk 00:03:42]} {[%emt 00:00:37]} 45.
Nxd6+ {[%clk 00:46:00]} {[%emt 00:00:12]} Kf6 {[%clk 00:03:54]} {[%emt
00:00:18]} 46. Nxb7 {[%clk 00:42:11]} {[%emt 00:04:19]} Nc4 {[%clk 00:04:10]}
{[%emt 00:00:14]} 47. a4 {[%clk 00:39:53]} {[%emt 00:02:48]} Nb6 {[%clk
00:02:49]} {[%emt 00:01:51]} 48. d6 {[%clk 00:40:18]} {[%emt 00:00:05]} Ke6
{[%clk 00:02:59]} {[%emt 00:00:20]} 49. h5 {[%clk 00:40:40]} {[%emt 00:00:08]}
Nd5+ {[%clk 00:02:15]} {[%emt 00:01:14]} 50. Kg5 {[%clk 00:40:39]} {[%emt
00:00:30]} Nf6 {[%clk 00:02:12]} {[%emt 00:00:33]} 51. Kg6 {[%clk 00:40:27]}
{[%emt 00:00:42]} Ng4 {[%clk 00:26:34]} {[%emt 00:06:08]} 52. h6 {[%clk
01:10:25]} {[%emt 00:00:33]} Ne5 {[%clk 00:26:57]} {[%emt 00:00:07]} 53. Kg7
{[%emt 00:00:26]} Nf7 {[%clk 00:26:23]} {[%emt 00:01:04]} 54. Nc5+ {[%clk
01:10:24]} {[%emt 00:00:35]} 1-0